Cogmind - Beta 15 @@@ ROGUE MODE // 2025.08.10 @ 14:29:45 Player: C0-2MO Result: Destroyed by G-73 Enforcer with Phase Gun Performance ------------- Evolutions (9) 4500 Regions Visited (17) 3400 Robots Destroyed (232) 1160 Value Destroyed (8202) 8202 Prototype IDs (34) 680 Alien Tech Used (0) 0 Bonus (1618) 1618 TOTAL SCORE: 19560 Bonus ------- High Alert Combat Kills 840 Follower Combat Kills 296 Entered DSFs 500 Friendly Fire -18 Cogmind --------- Core Integrity 0/1600 Matter 100/300 Energy 100/100 System Corruption 0% Temperature Cool (0) Movement Core (50) Location -1/Command Parts ------- > --- POWER (2) -------- (None) > --- PROPULSION (10) -- (None) > --- UTILITY (9) ------ Graphene Brace System Shield > --- WEAPON (4) ------- (None) > --- INVENTORY (5) ---- Stasis Canceller Peak State ------------ > --- POWER ------------ Enhanced Fission Core Light Antimatter Reactor > --- PROPULSION ------- Nuclear Pulse Array Impulse Thruster Q-thruster Impulse Thruster Array > --- UTILITY ---------- Medium Storage Unit Quantum Shading Machine Advanced Sensor Array Advanced Signal Interpreter Long-range Terrain Scanner Nanoactuators Improved Hacking Suite Improved System Shield > --- WEAPON ----------- Tactical Quantum Warhead Powered Hammer > --- INVENTORY -------- Light Antimatter Reactor Xenon Bombardment Thruster Xenon Bombardment Thruster Xenon Bombardment Thruster Xenon Bombardment Thruster Quantum Shading Machine Heavy Phase Cannon Rocket Array [Rating: 118] Favorites ----------- Power Reinforced Deuterium Engine Engine Reinforced Deuterium Engine Power Core Constructs Reactor Light Antimatter Reactor Propulsion Wheel Treads Spiked Treads Leg Carbon-fiber Leg Wheel Wheel Hover Unit Antigrav System Flight Unit Xenon Bombardment Thruster Utility High-capacity Storage Unit Device Improved Heat Sink Storage High-capacity Storage Unit Processor Rainbow Chip Hackware Improved Hacking Suite Protection Scrap Shield Weapon Subdweller Beam Cannon Energy Gun Improved Medium Laser Energy Cannon Subdweller Beam Cannon Ballistic Gun Gauss Rifle Ballistic Cannon Mass Driver Launcher Rocket Array Special Weapon Improved Plasma Cutter Impact Weapon Power Maul Slashing Weapon Greatsword Build | -11 -10 -10 -8 -7 -7 -7 -5 -5 -5 -4 -3 -3 -3 -2 -2 -1 -1 ------- Run | Yrd Mat Sub Mat Fac Sto Rec Fac Was Fac Fac Res Arm Lab Res DSF Acc Com Slots Evolved 18 | . . . 4 2 . . 4 . . 2 2 . . 2 . 2 . Power 1 | . . . . . . . 1 . . . . . . . . . . Propulsion 8 | . . . 2 . . . . . . . 2 . . 2 . 2 . Utility 7 | . . . 2 1 . . 2 . . 2 . . . . . . . Weapon 2 | . . . . 1 . . 1 . . . . . . . . . . Parts Attached 184 | 7 8 18 21 19 7 2 13 1 22 16 34 7 . . . 5 4 Power 17 | 1 1 2 1 3 1 . . 1 1 . 3 1 . . . 1 1 Engine 7 | 1 1 2 1 1 1 . . . . . . . . . . . . Core 4 | . . . . 2 . . . . 1 . . . . . . 1 . Reactor 6 | . . . . . . . . 1 . . 3 1 . . . . 1 Propulsion 63 | 2 3 7 11 4 2 1 3 . 11 6 10 1 . . . 2 . Treads 9 | 1 2 1 4 . . . . . 1 . . . . . . . . Leg 4 | . . . . . . . . . 4 . . . . . . . . Wheel 30 | 1 1 6 7 4 2 1 2 . 6 . . . . . . . . Hover 5 | . . . . . . . 1 . . 2 . . . . . 2 . Flight 15 | . . . . . . . . . . 4 10 1 . . . . . Utility 60 | 2 2 3 4 6 2 1 6 . 6 6 16 4 . . . . 2 Device 41 | 1 1 2 3 4 1 1 3 . 6 4 11 3 . . . . 1 Storage 4 | 1 1 . 1 . . . . . . . 1 . . . . . . Processor 8 | . . . . 2 . . 2 . . 1 2 1 . . . . . Hackware 3 | . . . . . . . . . . . 2 . . . . . 1 Protection 4 | . . 1 . . 1 . 1 . . 1 . . . . . . . Artifact . | . . . . . . . . . . . . . . . . . . Weapon 44 | 2 2 6 5 6 2 . 4 . 4 4 5 1 . . . 2 1 Energy Gun 11 | 2 2 1 2 . 1 . 1 . 1 . . . . . . . 1 Energy Cannon 12 | . . 2 1 4 . . . . 2 . 2 . . . . 1 . Ballistic Gun 8 | . . 1 1 1 . . 1 . . 3 1 . . . . . . Ballistic Cannon 4 | . . 1 1 . . . 2 . . . . . . . . . . Launcher 4 | . . 1 . 1 1 . . . . . 1 . . . . . . Special Weapon 2 | . . . . . . . . . . 1 . 1 . . . . . Impact Weapon 2 | . . . . . . . . . 1 . 1 . . . . . . Slashing Weapon 1 | . . . . . . . . . . . . . . . . 1 . Piercing Weapon . | . . . . . . . . . . . . . . . . . . Special Melee Weapon . | . . . . . . . . . . . . . . . . . . Unidentified Prototypes 18 | . 1 . 3 1 2 1 1 1 1 3 4 . . . . . . Parts Lost 87 | . . 1 10 10 1 . 12 3 12 14 4 4 . . 1 11 4 Power 11 | . . . . 3 . . 2 . 1 1 . 2 . . . . 2 Propulsion 36 | . . 1 5 3 1 . 5 1 4 7 1 1 . . 1 6 . Utility 23 | . . . 3 3 . . 3 . 5 4 . 1 . . . 3 1 Weapon 17 | . . . 2 1 . . 2 2 2 2 3 . . . . 2 1 Highest Loss Streak 7 | . . 1 7 5 1 . 4 2 3 6 3 3 . . 1 7 2 To Critical Strikes . | . . . . . . . . . . . . . . . . . . Average Backups 12 | 2 4 11 19 19 18 16 15 10 7 4 4 8 8 6 6 8 3 Power . | . 1 . 1 . . 1 . . . 1 1 1 1 1 1 3 . Propulsion 1 | 1 1 1 2 5 4 1 1 1 . . 1 2 2 . . . . Utility 4 | . 1 4 6 4 4 5 7 8 3 . . 2 3 3 3 3 2 Weapon 5 | . . 5 8 9 9 8 5 1 2 2 1 2 2 2 2 2 . Tool/Special . | . . . . . . . . . . . . . . . . . . Unused Backups 27 | . 1 2 . 7 3 5 2 . 3 1 . . . . . 2 1 Power 4 | . . 1 . 1 . . . . . . . . . . . 2 . Propulsion 6 | . . . . 1 2 2 . . 1 . . . . . . . . Utility 7 | . . . . 4 . . . . 2 . . . . . . . 1 Weapon 10 | . 1 1 . 1 1 3 2 . . 1 . . . . . . . Tool/Special . | . . . . . . . . . . . . . . . . . . Average Slot Usage (%) 77 | . 97 97 85 87 85 73 68 50 61 27 54 72 66 69 67 40 6 Engine 6 | . 13 14 9 4 6 6 5 . . . . . . . . . . Core 1 | . . . . 3 . . 2 . 2 1 2 . 4 4 4 1 . Treads 4 | . 13 5 9 2 . 4 . . . . . . . . . . . Wheel 14 | . 13 22 22 20 19 12 8 11 6 . . . . . . . . Flight 1 | . . . . . . . . . . 2 19 19 14 21 19 7 . Device 13 | . 23 11 11 17 14 12 12 5 13 7 13 16 19 17 17 8 2 Storage 7 | . 4 12 9 5 6 6 5 5 5 1 1 4 4 4 4 3 . Processor 5 | . . . . 7 13 13 12 11 7 2 6 8 9 8 8 7 . Protection 1 | . . 1 4 . 4 1 . . . . . . . . . . . Energy Gun 4 | . 26 3 4 . 4 4 3 . 2 3 . . . . . . . Energy Cannon 10 | . . 23 8 17 7 5 2 1 7 . 2 . . . . . . Ballistic Gun 1 | . . . 4 1 6 3 2 . . 1 . . . . . . . Peak Build Rating 118 | 7 14 20 30 55 63 77 99 58 85 70 118 110 94 94 94 92 28 Average Rating 45 | 5 11 17 26 46 59 69 83 49 62 28 71 103 92 94 91 66 14 On Entrance 49 | . 7 14 20 30 49 62 72 49 46 61 8 107 81 94 94 90 3 Naked Turns 37 | . . . . . . . . . . 7 . . . . . 4 26 Heaviest Build 234 | 13 52 66 219 234 76 76 85 76 97 62 50 39 32 32 32 32 16 Greatest Support 60 | 16 20 36 42 46 48 48 51 26 60 60 60 44 43 43 43 37 23 Greatest Overweight (x) 29 | . 5 6 10 11 1 2 8 2 29 2 2 . . . . 1 . Average Overweight (x) 1 | . 1 3 2 2 1 1 1 2 3 . . . . . . . . Largest Inventory Capacity 35 | 8 20 20 35 35 20 20 20 20 20 20 10 10 10 10 10 10 5 Average Capacity 18 | 7 8 18 25 23 20 20 20 20 20 9 7 10 10 10 10 9 5 Most Carried 34 | 3 6 17 34 33 20 20 20 11 12 7 10 10 8 6 6 10 5 Average Carried 13 | 2 4 13 20 20 19 17 16 10 7 4 4 9 6 6 6 8 2 Final Capacity 35 | 8 20 20 35 20 20 20 20 20 20 5 10 10 10 10 10 5 5 Final Carried 33 | 3 6 17 33 19 20 20 11 10 7 5 10 9 6 6 6 5 1 Scrap Engine Consumption 122 | . . . . . . 33 41 2 40 6 . . . . . . . Constructs Created 10 | . . . . . . 2 1 1 6 . . . . . . . . Constructs Modified 37 | . . . . . . 11 19 . 7 . . . . . . . . Class Distribution -------------------- 29% | Mutant 23% | Scavenger-Mutant 13% | Gunner 7% | Scavenger-Gunner 6% | Scavenger-Skirmisher 5% | Subdweller-Mutant 4% | Hauler-Mutant Dominant Class ---------------- Mutant | -10/Materials Scavenger-Mutant | -10/Subcaves Subdweller-Mutant | -8/Materials Scavenger-Gunner | -7/Factory Gunner | -7/Storage Mutant | -7/Recycling Gunner | -5/Factory Gunner | -5/Waste Mutant | -5/Factory Mutant | -4/Factory Scavenger-Scout | -3/Research Hacker-Sprinter | -3/Armory Hacker-Sprinter | -3/Lab Scavenger-Sprinter | -2/Research Scavenger-Sprinter | -2/DSF Hacker-Mutant | -1/Access Mutant | -1/Command Resources | -11 -10 -10 -8 -7 -7 -7 -5 -5 -5 -4 -3 -3 -3 -2 -2 -1 -1 ----------- Run | Yrd Mat Sub Mat Fac Sto Rec Fac Was Fac Fac Res Arm Lab Res DSF Acc Com Matter Collected 4549 | 270 195 355 404 355 229 190 1161 . 702 154 392 117 . . 8 17 . Remotely . | . . . . . . . . . . . . . . . . . . Salvage Created 10772 | 124 518 426 1504 873 689 572 2482 825 1937 328 400 28 . . . 66 . Parts 459 | 5 30 28 94 36 26 23 112 3 68 8 25 . . . . 1 . Haulers Intercepted 7 | . 2 . 3 . . . . . 1 1 . . . . . . . Recyclers Shooed 4 | . . . . 1 . . 2 . 1 . . . . . . . . Parts Field Recycled . | . . . . . . . . . . . . . . . . . . Retrieved Matter . | . . . . . . . . . . . . . . . . . . Parts Self-Destructed 17 | . . 17 . . . . . . . . . . . . . . . Prevented . | . . . . . . . . . . . . . . . . . . Kills | -11 -10 -10 -8 -7 -7 -7 -5 -5 -5 -4 -3 -3 -3 -2 -2 -1 -1 ------- Run | Yrd Mat Sub Mat Fac Sto Rec Fac Was Fac Fac Res Arm Lab Res DSF Acc Com Combat Hostiles Destroyed 155 | . 9 12 25 16 10 8 40 4 16 4 4 . . . . 7 . Melee 1 | . . . . . . . . . 1 . . . . . . . . Guns 53 | . 9 2 14 . 6 3 11 . 3 3 2 . . . . . . Cannons 69 | . . 9 9 13 4 5 18 . 10 . 1 . . . . . . AOE 23 | . . . 1 . . . 11 4 . . . . . . . 7 . Classes Destroyed 21 | 2 5 2 6 2 1 . 1 1 1 . . . . . . . . Worker 9 | . . . 1 . . . 4 . 3 . . . . . . 1 . Builder 16 | . . . 2 . . . 5 . 6 . 2 . . . . 1 . Tunneler 6 | 2 . . . 1 . . 2 . 1 . . . . . . . . Hauler 7 | . 2 . 3 . . . . . 1 1 . . . . . . . Recycler 20 | 1 1 . 3 1 2 2 3 . 5 1 1 . . . . . . Mechanic 3 | . . . . . 1 . 2 . . . . . . . . . . Operator 6 | . 1 . 1 . . . . . . . 3 1 . . . . . Turret 1 | . . 1 . . . . . . . . . . . . . . . Watcher 9 | . 2 . 2 1 . . 2 . . . . . . . . 2 . Swarmer 30 | . 3 5 4 2 3 . . . . 3 4 . . . . 6 . Cutter 3 | . . . 3 . . . . . . . . . . . . . . Grunt 65 | . 6 . 9 9 4 . 30 . 6 1 . . . . . . . Brawler 6 | . . . 2 . 1 . 3 . . . . . . . . . . Duelist 1 | . . . . . . . . . 1 . . . . . . . . Protector 1 | . . . . . . . 1 . . . . . . . . . . Sentry 17 | . . . 6 2 2 3 3 . 1 . . . . . . . . Hunter 4 | . . . . 1 . . . . 2 . . . . . . 1 . Programmer 11 | . . . . 2 . . 3 . 6 . . . . . . . . Heavy 1 | . . . 1 . . . . . . . . . . . . . . Compactor 4 | . . . . . . . . 4 . . . . . . . . . Subdweller 12 | . . 7 . . . 5 . . . . . . . . . . . Best Kill Streak 11 | 2 4 3 6 4 6 2 11 3 4 3 4 1 . . . 11 . Combat Bots Only 8 | . 3 3 5 4 5 2 8 3 4 3 4 . . . . 7 . Max Kills in Single Turn 5 | 1 2 2 2 1 2 1 4 2 3 1 1 1 . . . 5 . Gunslinging 1 | . 1 . . . . . . . . . . . . . . . . Exploded 4 | . . . 1 . . . 3 2 . . . . . . . 4 . Melee 1 | . . . . . . . . . 1 . . . . . . . . Uniques/NPCs Destroyed . | . . . . . . . . . . . . . . . . . . Combat | -11 -10 -10 -8 -7 -7 -7 -5 -5 -5 -4 -3 -3 -3 -2 -2 -1 -1 -------- Run | Yrd Mat Sub Mat Fac Sto Rec Fac Was Fac Fac Res Arm Lab Res DSF Acc Com Hostile Shots Fired 1347 | . 20 31 111 127 61 78 218 1 178 164 62 95 . . 6 107 88 Missed 446 | . 4 8 37 41 23 18 65 1 39 63 13 55 . . 5 38 36 Hits 901 | . 16 23 74 86 38 60 153 . 139 101 49 40 . . 1 69 52 Melee 20 | . . . 4 . . . 4 . 2 . . 10 . . . . . Projectile 881 | . 16 23 70 86 38 60 149 . 137 101 49 30 . . 1 69 52 AOE 2 | . . . 1 . . . 1 . . . . . . . . . . Critical Strikes 46 | . . 1 10 2 . . 7 . 13 2 . 7 . . . 3 1 Actively Blocked 7 | . . . . . . . . . . . . 6 . . . . 1 Part Disruptions 2 | . . . . 1 . . 1 . . . . . . . . . . Damage Taken 17868 | . 168 405 1521 1389 416 416 3449 299 2921 2049 1089 880 . . 91 1576 1199 Core 5003 | . 51 120 265 251 41 43 433 31 504 860 558 162 . . 63 791 830 Absorbed by Shields . | . . . . . . . . . . . . . . . . . . Regen/Repaired (Parts) 1333 | . 29 . . . . 67 514 . 723 . . . . . . . . Core Remaining (%) 50 | 100 . 31 51 . . 52 . . 3 25 . . 44 . 95 . . Volleys Fired 553 | 5 32 56 93 55 27 23 123 5 66 16 41 . . . . 6 5 Largest 4 | 2 2 2 2 4 3 3 3 3 3 2 1 . . . . 1 1 Hottest 286 | 100 112 160 160 286 171 142 222 159 262 165 90 . . . . 120 65 Shots Fired 1114 | 10 60 94 171 149 73 56 261 11 147 30 41 . . . . 6 5 Gun 493 | 10 60 14 112 8 45 32 119 . 44 30 14 . . . . . 5 Cannon 602 | . . 77 58 141 28 24 135 5 103 . 27 . . . . 4 . Launcher 19 | . . 3 1 . . . 7 6 . . . . . . . 2 . Special . | . . . . . . . . . . . . . . . . . . Kinetic 315 | . . 12 54 24 23 18 154 4 11 1 14 . . . . . . Thermal 770 | 10 60 82 117 125 50 38 100 1 136 15 27 . . . . 4 5 Explosive 15 | . . . . . . . 7 6 . . . . . . . 2 . Electromagnetic 14 | . . . . . . . . . . 14 . . . . . . . Robot Hit Streak 48 | 5 12 8 12 20 17 48 15 8 9 10 6 . . . . 2 5 Robot Miss Streak 5 | 1 5 3 3 3 3 1 5 2 4 4 2 . . . . . 1 Penetration Max 1 | . . . . 1 1 . 1 . 1 . . . . . . . . Secondary Targets 3 | . 1 . 1 . . . . . . 1 . . . . . . . Max Gunslinging Chain 1 | . 1 . 1 . . . . . . 1 . . . . . . . Shots Hit Robots 692 | 8 35 48 113 89 42 39 157 10 101 17 25 1 . . . 3 4 Core Hits 413 | 4 19 15 51 30 21 19 159 17 40 9 12 . . . . 17 . Critical Kills 15 | . . 1 1 2 . 1 3 . 4 . 3 . . . . . . Critical Parts Destroyed 10 | . . . 1 . . 2 2 . 3 . 1 1 . . . . . Critical Strikes 48 | 1 4 4 4 3 . 5 15 . 7 . 4 1 . . . . . Burn 17 | 1 4 2 1 . . 2 7 . . . . . . . . . . Meltdown 8 | . . 1 1 2 . . . . 3 . 1 . . . . . . Destroy 12 | . . . 1 . . 3 5 . . . 3 . . . . . . Blast 6 | . . 1 1 1 . . 3 . . . . . . . . . . Smash 5 | . . . . . . . . . 4 . . 1 . . . . . Melee Attacks 44 | . . . . . . . . . 16 . 3 19 . . . 6 . Impact 43 | . . . . . . . . . 16 . 3 19 . . . 5 . Slashing 1 | . . . . . . . . . . . . . . . . 1 . Piercing . | . . . . . . . . . . . . . . . . . . Sneak Attacks 6 | . . . . . . . . . 5 . 1 . . . . . . Combat Hostiles . | . . . . . . . . . . . . . . . . . . Follow-up Attacks . | . . . . . . . . . . . . . . . . . . Damage Inflicted 26407 | 99 545 1158 2690 2211 1012 883 7418 3537 3849 539 957 43 . . . 1298 168 Guns 6783 | 99 539 217 1651 83 578 386 1746 . 556 487 286 . . . . . 155 Cannons 10959 | . . 941 925 2128 434 497 2957 223 2350 . 504 . . . . . . Explosions 7382 | . . . 105 . . . 2714 3314 . 52 . . . . . 1197 . Melee 1205 | . . . . . . . . . 894 . 167 43 . . . 101 . Ramming 78 | . 6 . 9 . . . 1 . 49 . . . . . . . 13 Kinetic 6010 | . . 107 1034 399 253 188 3341 202 200 . 286 . . . . . . Thermal 12041 | 99 539 1051 1647 1812 759 695 1819 21 2706 234 504 . . . . . 155 Explosive 6715 | . . . . . . . 2204 3314 . . . . . . . 1197 . Electromagnetic 358 | . . . . . . . 53 . . 305 . . . . . . . Impact 1205 | . . . . . . . . . 894 . 167 43 . . . 101 . Slashing . | . . . . . . . . . . . . . . . . . . Piercing . | . . . . . . . . . . . . . . . . . . Highest Corruption 42 | . . . 2 4 4 5 12 32 42 2 . 7 7 . . . . Average Corruption 13 | . . . 2 2 4 4 5 20 36 1 . 1 7 . . . . Corruption Purged . | . . . . . . . . . . . . . . . . . . Corruption Blocked . | . . . . . . . . . . . . . . . . . . Effects 185 | . . . 3 14 6 37 20 5 95 2 . 3 . . . . . Message Errors 39 | . . . 1 3 . 9 3 1 20 1 . 1 . . . . . Matter Fused 39 | . . . . 3 1 12 6 . 16 . . 1 . . . . . Heat Flow Errors 24 | . . . 1 2 2 3 2 2 12 . . . . . . . . Energy Discharges 23 | . . . 1 2 . 5 3 . 12 . . . . . . . . Parts Rejected 6 | . . . . 1 . . 3 . 1 1 . . . . . . . Parts Fused 4 | . . . . . . . 1 . 3 . . . . . . . . Data Loss (minor) 19 | . . . . 1 2 5 . . 11 . . . . . . . . Data Loss (major) 7 | . . . . . 1 2 . . 3 . . 1 . . . . . Misfires 5 | . . . . 1 . 1 . 1 2 . . . . . . . . Alerts 1 | . . . . . . . . . 1 . . . . . . . . Misdirections 2 | . . . . . . . . 1 1 . . . . . . . . Weapon Failures 16 | . . . . 1 . . 2 . 13 . . . . . . . . Overload Shots . | . . . . . . . . . . . . . . . . . . Overflow Damage 806 | . . . 5 47 . . 128 20 521 . 31 43 . . . 11 . Projectiles 227 | . . . . 47 . . 125 . 40 . 15 . . . . . . Explosions 30 | . . . 5 . . . 3 20 . . . . . . . 2 . Melee 549 | . . . . . . . . . 481 . 16 43 . . . 9 . Knockbacks 47 | . 1 . . 8 . . 33 . 5 . . . . . . . . Impact 7 | . 1 . . . . . 1 . 5 . . . . . . . . Kinetic 32 | . . . . 6 . . 26 . . . . . . . . . . Secondary 8 | . . . . 2 . . 6 . . . . . . . . . . Self-Inflicted Damage 761 | . . 26 63 . . . 312 303 18 . . . . . . 33 6 Shots 29 | . . 1 1 . . . 14 12 . . . . . . . 1 . Rammed 12 | . 1 . 1 . . . . . 5 . . . . . . . 5 Targets Rammed 14 | . 1 . 1 . . . 1 . 6 . . . . . . . 5 Kicked 2 | . . . . . . . 1 . 1 . . . . . . . . Crushed . | . . . . . . . . . . . . . . . . . . Highest Temperature 547 | 117 277 24 432 405 79 181 351 166 547 191 344 3 . . . 124 . Average Temperature 92 | 54 65 6 86 132 21 68 86 69 126 75 93 3 . . . 68 . Received Heat Transfer 3045 | . 72 51 468 414 132 48 957 . 684 30 18 18 . . . 144 9 Effects 15 | . . . 1 4 . . 3 . 6 . 1 . . . . . . Shutdowns 4 | . . . . 2 . . . . 2 . . . . . . . . Energy Bleed 2 | . . . . 2 . . . . . . . . . . . . . Interference 5 | . . . . . . . 3 . 2 . . . . . . . . Matter Decay 1 | . . . . . . . . . 1 . . . . . . . . Short Circuit 1 | . . . . . . . . . . . 1 . . . . . . Damage (minor) 1 | . . . 1 . . . . . . . . . . . . . . Damage (core) 1 | . . . . . . . . . 1 . . . . . . . . Siege Activations . | . . . . . . . . . . . . . . . . . . Martial Activations . | . . . . . . . . . . . . . . . . . . Shielding Activations . | . . . . . . . . . . . . . . . . . . Robots Disrupted . | . . . . . . . . . . . . . . . . . . Combat Hostiles . | . . . . . . . . . . . . . . . . . . Robots Corrupted 8 | . . . . . . . . . 4 1 1 1 . . . 1 . Combat Hostiles 1 | . . . . . . . . . . 1 . . . . . . . Parts Fried 19 | . . . . . . . . . 12 3 2 2 . . . . . Impact Corruptions 22 | . . . . . . . . . 16 . 1 3 . . . 2 . Robots Melted 9 | . . 1 1 3 . . . . 3 . 1 . . . . . . Combat Hostiles 8 | . . 1 1 3 . . . . 2 . 1 . . . . . . Parts Melted 55 | 3 4 4 8 10 3 7 4 . 9 1 2 . . . . . . Heat Transferred 18377 | 370 1628 1739 2789 2738 1221 1309 2981 37 2479 346 555 . . . . . 185 Parts Sabotaged . | . . . . . . . . . . . . . . . . . . Parts Stolen . | . . . . . . . . . . . . . . . . . . Parts Stripped . | . . . . . . . . . . . . . . . . . . Power Chain Reactions 2 | . . . . . . . 1 . . 1 . . . . . . . Alert | -11 -10 -10 -8 -7 -7 -7 -5 -5 -5 -4 -3 -3 -3 -2 -2 -1 -1 ------- Run | Yrd Mat Sub Mat Fac Sto Rec Fac Was Fac Fac Res Arm Lab Res DSF Acc Com Maximum Alert Level 4 | . . . 1 2 1 . 4 2 1 . 1 . . . . 1 1 Low Security (%) 59 | 100 100 . 72 16 46 100 21 . 50 100 57 100 . 100 100 29 50 Level 1 26 | . . . 27 66 53 . 12 . 49 . 42 . . . . 70 50 Level 2 8 | . . . . 16 . . 35 100 . . . . . . . . . Level 3 1 | . . . . . . . 11 . . . . . . . . . . Level 4 3 | . . . . . . . 18 . . . . . . . . . . Level 5 . | . . . . . . . . . . . . . . . . . . High Security . | . . . . . . . . . . . . . . . . . . Max Security . | . . . . . . . . . . . . . . . . . . Peak Influence 1341 | 10 69 . 246 428 333 161 1341 495 341 179 234 176 . . . 392 234 Initial 465 | . . . . 106 144 121 200 465 336 154 78 106 . . . . 234 Average 225 | 1 22 . 120 305 218 27 605 471 214 130 183 90 . . . 246 201 Influence Increases 7251 | 15 302 295 893 783 309 165 2023 96 651 375 379 412 . . . 538 15 Destroy 0b10 Robot/C 2880 | . 180 120 500 320 200 60 800 . 320 80 80 80 . . . 140 . Destroy 0b10 Robot/NC 390 | 15 30 . 60 15 15 10 95 . 80 10 30 10 . . . 20 . Destroy Leader 634 | . 48 10 140 112 50 . 134 . 82 12 10 12 . . . 24 . Allied During Kill 48 | . . . . . . . 5 . . . . 43 . . . . . Successful Hack 244 | . 12 . 56 12 5 . 19 . . 10 14 95 . . . 21 . Select Force Hacks 210 | . 30 . 30 60 . 90 . . . . . . . . . . . Disable Machine 495 | . . . . 30 30 . 180 . 90 15 45 60 . . . 45 . Anti-Garrison Action 400 | . . . . 200 . . 200 . . . . . . . . . . Destroy Structure 745 | . 2 . 32 4 9 5 300 96 64 8 20 22 . . . 183 . Advance Influence 200 | . . . . . . . 200 . . . . . . . . . . Partial Spotted 120 | . . . . . . . . . . 30 15 60 . . . 15 . Lose Combat Pursuer 885 | . . 165 75 30 . . 90 . 15 210 165 30 . . . 90 15 Influence Decreases 7082 | 15 295 302 658 699 315 478 693 945 815 541 327 543 72 . . 171 213 Entered New Map 2048 | . . 4 . 129 175 192 . 865 145 163 73 97 72 . . . 133 Time Decay 3777 | 15 295 288 408 470 130 286 553 50 550 238 214 160 . . . 80 40 Lost Part 841 | . . 10 100 100 10 . 120 30 120 140 40 40 . . . 91 40 Lost Ally 100 | . . . . . . . 20 . . . . 80 . . . . . Purge Threat 316 | . . . 150 . . . . . . . . 166 . . . . . Squads Dispatched 47 | . 3 . 4 9 1 . 9 . 5 4 1 8 . . . 3 . Investigation 11 | . 1 . 2 3 . . 2 . . . . 3 . . . . . Extermination 12 | . . . . 2 . . 2 . 3 2 1 1 . . . 1 . Reinforcement 17 | . 2 . 2 1 1 . 1 . 2 2 . 4 . . . 2 . Assault 3 | . . . . . . . 3 . . . . . . . . . . Garrison 4 | . . . . 3 . . 1 . . . . . . . . . . Intercept . | . . . . . . . . . . . . . . . . . . Searches Triggered . | . . . . . . . . . . . . . . . . . . Construction Impeded 3 | . . . . . . . 1 . 1 . . . . . . 1 . Haulers Reinforced 2 | . . . . . . . . . 1 1 . . . . . . . Active Scanning Responses . | . . . . . . . . . . . . . . . . . . Cargo Convoy Interrupts . | . . . . . . . . . . . . . . . . . . Stealth | -11 -10 -10 -8 -7 -7 -7 -5 -5 -5 -4 -3 -3 -3 -2 -2 -1 -1 --------- Run | Yrd Mat Sub Mat Fac Sto Rec Fac Was Fac Fac Res Arm Lab Res DSF Acc Com Distress Signals 14 | . . . 1 . . 2 3 . 1 2 . 4 . . . 1 . Communications Jammed . | . . . . . . . . . . . . . . . . . . Distress Signals . | . . . . . . . . . . . . . . . . . . Times Spotted 370 | . 13 27 33 21 12 8 56 6 23 29 20 76 . . 2 26 18 Peak Tracking Total 18 | . 3 5 6 4 5 2 9 5 4 8 5 15 . . 3 11 18 Tactical Retreats 44 | . . 4 4 1 . . 5 . 1 8 6 11 . . . 3 1 Traps | -11 -10 -10 -8 -7 -7 -7 -5 -5 -5 -4 -3 -3 -3 -2 -2 -1 -1 ------- Run | Yrd Mat Sub Mat Fac Sto Rec Fac Was Fac Fac Res Arm Lab Res DSF Acc Com Traps Triggered 19 | . 4 . 2 2 1 . 4 . 1 2 . 2 . . . 1 . Indirectly . | . . . . . . . . . . . . . . . . . . Trap Hack Attempts . | . . . . . . . . . . . . . . . . . . Triggered . | . . . . . . . . . . . . . . . . . . Disarmed . | . . . . . . . . . . . . . . . . . . Reprogrammed . | . . . . . . . . . . . . . . . . . . Reused . | . . . . . . . . . . . . . . . . . . Traps Extracted . | . . . . . . . . . . . . . . . . . . Installed . | . . . . . . . . . . . . . . . . . . Triggered . | . . . . . . . . . . . . . . . . . . Machines | -11 -10 -10 -8 -7 -7 -7 -5 -5 -5 -4 -3 -3 -3 -2 -2 -1 -1 ---------- Run | Yrd Mat Sub Mat Fac Sto Rec Fac Was Fac Fac Res Arm Lab Res DSF Acc Com Machines Disabled 34 | . . 1 . 2 2 . 12 . 6 1 3 4 . . . 3 . Max in Single Turn 2 | . . 1 . 1 1 . 2 . 2 1 1 1 . . . 1 . Garrison Access 3 | . . . . 1 . . 1 . . 1 . . . . . . . Machines Repaired . | . . . . . . . . . . . . . . . . . . Machines Dismantled 1 | . . . . . . . . . . 1 . . . . . . . Machines Sabotaged . | . . . . . . . . . . . . . . . . . . Overloaded Fab Kills . | . . . . . . . . . . . . . . . . . . Hacking | -11 -10 -10 -8 -7 -7 -7 -5 -5 -5 -4 -3 -3 -3 -2 -2 -1 -1 --------- Run | Yrd Mat Sub Mat Fac Sto Rec Fac Was Fac Fac Res Arm Lab Res DSF Acc Com Machines Accessed 56 | . 6 2 10 7 1 7 3 . . 3 5 9 . 1 . 2 . Terminals 36 | . 4 . 9 3 1 1 2 . . 2 4 7 . 1 . 2 . Fabricators 2 | . . . . 1 . . . . . . . 1 . . . . . Repair Stations 1 | . 1 . . . . . . . . . . . . . . . . Recycling Units 9 | . 1 . 1 2 . 4 . . . . . 1 . . . . . Scanalyzers . | . . . . . . . . . . . . . . . . . . Garrison Access 4 | . . . . 1 . . 1 . . 1 1 . . . . . . Total Hacks 134 | . 17 5 22 10 3 15 5 . . 7 9 35 . 2 . 4 . Successful 76 | . 8 5 15 5 2 9 3 . . 4 1 22 . 1 . 1 . Failed 58 | . 9 . 7 5 1 6 2 . . 3 8 13 . 1 . 3 . Catastrophic 13 | . . . 1 3 . 2 . . . 1 3 3 . . . . . Database Lockouts . | . . . . . . . . . . . . . . . . . . Manual 90 | . 12 . 18 6 4 6 3 . . 5 9 23 . . . 4 . Terminals 96 | . 13 . 21 3 3 1 4 . . 5 8 32 . 2 . 4 . Fabricators 4 | . . . . 3 . . . . . . . 1 . . . . . Repair Stations 3 | . 3 . . . . . . . . . . . . . . . . Recycling Units 17 | . 1 . 1 2 . 11 . . . . . 2 . . . . . Scanalyzers . | . . . . . . . . . . . . . . . . . . Garrison Access 6 | . . . . 2 . . 1 . . 2 1 . . . . . . Terminal Hacks 27 | . 1 5 7 1 . 3 1 . . 1 . 7 . 1 . . . Record 5 | . . 4 . . . 1 . . . . . . . . . . . Part Schematic 1 | . . . . . . . . . . . . 1 . . . . . Robot Analysis 4 | . . . 4 . . . . . . . . . . . . . . Open DSF 1 | . . . . . . . . . . . . . . 1 . . . Branch Access Points 1 | . . . . 1 . . . . . . . . . . . . . Emergency Access Points 1 | . . . . . . . . . . . . 1 . . . . . Terminal Index 1 | . . . . . . . . . . 1 . . . . . . . Unreport Threat 4 | . . . 1 . . . . . . . . 3 . . . . . Locate Traps 2 | . 1 . 1 . . . . . . . . . . . . . . Recall Investigation 1 | . . . 1 . . . . . . . . . . . . . . Zone Layout 3 | . . . . . . . 1 . . . . 2 . . . . . Proto ID Catalog 1 | . . 1 . . . . . . . . . . . . . . . Release Object 2 | . . . . . . 2 . . . . . . . . . . . Fabricator Hacks 1 | . . . . . . . . . . . . 1 . . . . . Build 1 | . . . . . . . . . . . . 1 . . . . . Repair Station Hacks 2 | . 2 . . . . . . . . . . . . . . . . Scan Component 1 | . 1 . . . . . . . . . . . . . . . . Repair 1 | . 1 . . . . . . . . . . . . . . . . Recycling Unit Hacks 4 | . . . . . . 3 . . . . . 1 . . . . . Retrieve Components 4 | . . . . . . 3 . . . . . 1 . . . . . Scanalyzer . | . . . . . . . . . . . . . . . . . . Garrison Access Hacks 1 | . . . . . . . . . . 1 . . . . . . . Seal Access 1 | . . . . . . . . . . 1 . . . . . . . Unauthorized Hacks 41 | . 5 . 8 4 2 3 2 . . 2 1 13 . . . 1 . Terminals 31 | . 4 . 7 . 2 . 1 . . 2 1 13 . . . 1 . Track 1 | . . . . . . . . . . . . 1 . . . . . Botnet 15 | . 2 . 2 . 1 . 1 . . 1 1 6 . . . 1 . Disrupt 2 | . . . . . . . . . . . . 2 . . . . . Skim 13 | . 2 . 5 . 1 . . . . 1 . 4 . . . . . Fabricators 1 | . . . . 1 . . . . . . . . . . . . . Liberate 1 | . . . . 1 . . . . . . . . . . . . . Repair Stations . | . . . . . . . . . . . . . . . . . . Recycling Units 7 | . 1 . 1 2 . 3 . . . . . . . . . . . Tunnel 7 | . 1 . 1 2 . 3 . . . . . . . . . . . Scanalyzers . | . . . . . . . . . . . . . . . . . . Garrison Access 2 | . . . . 1 . . 1 . . . . . . . . . . Jam 2 | . . . . 1 . . 1 . . . . . . . . . . Data Cores Recovered 3 | . . . 1 . . . . . . . 1 1 . . . . . Used 2 | . . . . . . . . . . . 1 1 . . . . . Hacking Detections 46 | . 5 . 9 4 2 4 2 . . 3 5 9 . 1 . 2 . Full Trace Events 3 | . . . . . . 1 . . . . . 2 . . . . . Feedback Events 1 | . . . . . . 1 . . . . . . . . . . . Corruption 1 | . . . . . . 1 . . . . . . . . . . . Feedback Blocked . | . . . . . . . . . . . . . . . . . . Robot Schematics Acquired . | . . . . . . . . . . . . . . . . . . Robots Built . | . . . . . . . . . . . . . . . . . . Authchips . | . . . . . . . . . . . . . . . . . . Time 68 | . . . . . . . . . . . . 68 . . . . . Total Robot Build Rating . | . . . . . . . . . . . . . . . . . . Part Schematics Acquired 1 | . . . . . . . . . . . . 1 . . . . . Parts Built . | . . . . . . . . . . . . . . . . . . Authchips . | . . . . . . . . . . . . . . . . . . Time . | . . . . . . . . . . . . . . . . . . Total Part Build Rating . | . . . . . . . . . . . . . . . . . . Parts Repaired 1 | . 1 . . . . . . . . . . . . . . . . Time 51 | . 51 . . . . . . . . . . . . . . . . Parts Recycled . | . . . . . . . . . . . . . . . . . . Recycled Matter . | . . . . . . . . . . . . . . . . . . Retrieved Matter . | . . . . . . . . . . . . . . . . . . Retrieved Components 3 | . . . . . . 3 . . . . . . . . . . . Parts Scanalyzed . | . . . . . . . . . . . . . . . . . . Part Schematics Acquired . | . . . . . . . . . . . . . . . . . . Parts Damaged . | . . . . . . . . . . . . . . . . . . Bothacking | -11 -10 -10 -8 -7 -7 -7 -5 -5 -5 -4 -3 -3 -3 -2 -2 -1 -1 ------------ Run | Yrd Mat Sub Mat Fac Sto Rec Fac Was Fac Fac Res Arm Lab Res DSF Acc Com Used RIF Installer . | . . . . . . . . . . . . . . . . . . Robots Hacked . | . . . . . . . . . . . . . . . . . . Non-combat . | . . . . . . . . . . . . . . . . . . Combat . | . . . . . . . . . . . . . . . . . . Robot Hacks Applied . | . . . . . . . . . . . . . . . . . . Relay Couplers Released 3 | . . . . . . . 3 . . . . . . . . . . Machine Destruction 3 | . . . . . . . 3 . . . . . . . . . . Fabnet Peak Effective % . | . . . . . . . . . . . . . . . . . . Robots Rewired 5 | . . . . . . . 1 . . . . 4 . . . . . Allies Hacked . | . . . . . . . . . . . . . . . . . . Hacks Repelled . | . . . . . . . . . . . . . . . . . . Allies | -11 -10 -10 -8 -7 -7 -7 -5 -5 -5 -4 -3 -3 -3 -2 -2 -1 -1 -------- Run | Yrd Mat Sub Mat Fac Sto Rec Fac Was Fac Fac Res Arm Lab Res DSF Acc Com Total Allies 7 | . . . . 2 . . 1 . . . . 4 . . . . . Largest Group 4 | . . . . 2 . . 1 . . . . 4 . . . . . Highest-Rated Group 356 | . . . . 42 . . 29 . . . . 356 . . . . . Highest-Rated Ally 89 | . . . . 21 . . 29 . . . . 89 . . . . . Total Orders . | . . . . . . . . . . . . . . . . . . Ally Attacks 49 | . . . . . . . 12 . . . . 37 . . . . . Total Damage 1126 | . . . . . . . 162 . . . . 964 . . . . . Kills 6 | . . . . . . . 1 . . . . 5 . . . . . Allies Corrupted 3 | . . . . . . . . . . . . 3 . . . . . Allies Melted . | . . . . . . . . . . . . . . . . . . Intel | -11 -10 -10 -8 -7 -7 -7 -5 -5 -5 -4 -3 -3 -3 -2 -2 -1 -1 ------- Run | Yrd Mat Sub Mat Fac Sto Rec Fac Was Fac Fac Res Arm Lab Res DSF Acc Com Active Infowar (turns) 4702 | 41 650 23 580 1192 49 . 732 . 453 144 370 337 4 17 10 100 . Optics 183 | . . 23 101 . . . . . . . 59 . . . . . . Sensors 1209 | . . . . . . . 227 . . 144 370 337 4 17 10 100 . Terrain 910 | . . . . . . . 475 . 138 . 297 . . . . . . Structural 2066 | . . . 480 1192 49 . 30 . 315 . . . . . . . . Seismic 691 | 41 650 . . . . . . . . . . . . . . . . T.N.C. 133 | . . . . . . . . . . . 133 . . . . . . Triangulation 405 | . . . . . . . . . . . . 280 4 17 10 94 . Cloaking 145 | . . . . . . . . . . . 29 116 . . . . . ECM 261 | . . . . . . . . . . . 14 247 . . . . . Robot Analysis Total 4 | . . . 4 . . . . . . . . . . . . . . Derelict Logs Recovered 2 | . . 2 . . . . . . . . . . . . . . . Drone Launches . | . . . . . . . . . . . . . . . . . . Drone Recoveries . | . . . . . . . . . . . . . . . . . . Exploration | -11 -10 -10 -8 -7 -7 -7 -5 -5 -5 -4 -3 -3 -3 -2 -2 -1 -1 ------------- Run | Yrd Mat Sub Mat Fac Sto Rec Fac Was Fac Fac Res Arm Lab Res DSF Acc Com Turns Passed 13129 | 89 830 3107 1391 1192 265 1343 1610 118 1596 510 452 344 8 17 10 167 80 Spaces Moved 9791 | 62 466 2107 757 697 141 1015 870 78 765 797 842 696 15 57 33 281 112 Core 254 | 1 8 . . . . . . . 8 89 27 . . . . 9 112 Treads 31 | . 3 . 6 10 . . 1 . 11 . . . . . . . . Legs 201 | . . . . . . . 25 . 129 47 . . . . . . . Wheels 6756 | 61 455 2107 751 687 141 1015 844 78 617 . . . . . . . . Hover 50 | . . . . . . . . . . 50 . . . . . . . Flight 2499 | . . . . . . . . . . 611 815 696 15 57 33 272 . Fastest Speed 25 | 50 80 90 110 100 100 101 109 120 101 35 25 32 29 29 29 32 50 Average Speed 102 | 99 110 136 133 122 101 114 127 120 152 48 30 32 29 29 30 40 50 Slowest Speed 1500 | 100 250 170 237 245 105 130 390 120 1500 260 150 39 29 29 32 115 50 Overloaded Moves . | . . . . . . . . . . . . . . . . . . Propulsion Burnouts . | . . . . . . . . . . . . . . . . . . Robots Hopped 37 | . . . . . . . . . . 8 17 11 . . . 1 . Potential Cave-ins . | . . . . . . . . . . . . . . . . . . Cave-ins Triggered . | . . . . . . . . . . . . . . . . . . Exploration Rate (%) 37 | 4 67 95 60 21 39 96 28 78 24 27 16 56 6 2 37 11 5 Regions Visited 17 Branch Regions 6 Pre-discovered Areas 10 | . 1 1 3 2 . 3 . . . . . . . . . . . Known Exits Taken 8 | . . . . 1 1 . . . 1 1 1 1 1 1 . . . Unknown Exits Taken 6 | 1 1 1 1 . . 1 . . . . . . . . . 1 . Scrap Searched 16 | . . 16 . . . . . . . . . . . . . . . Spaces Dug 26 | . . 1 4 . . 1 2 . 2 . 2 12 . . . 2 . Terrain Destroyed 517 | . . 51 35 . 6 3 168 106 28 3 9 12 . . . 96 . Melee 16 | . . . . . . . . . 2 . . 12 . . . 2 . Projectile 95 | . . 7 17 . 6 3 39 . 13 1 9 . . . . . . AOE 406 | . . 44 18 . . . 129 106 13 2 . . . . . 94 . Terrain Rammed . | . . . . . . . . . . . . . . . . . . Walls Destroyed . | . . . . . . . . . . . . . . . . . . Machines Disabled . | . . . . . . . . . . . . . . . . . . Actions | -11 -10 -10 -8 -7 -7 -7 -5 -5 -5 -4 -3 -3 -3 -2 -2 -1 -1 --------- Run | Yrd Mat Sub Mat Fac Sto Rec Fac Was Fac Fac Res Arm Lab Res DSF Acc Com Total 11691 | 76 718 2254 957 906 210 1158 1133 86 1029 870 972 773 17 56 32 314 130 Wait 790 | . 192 37 37 105 8 92 94 1 122 29 46 21 . . . 6 . Move 9704 | 61 465 2106 756 696 140 1014 870 77 764 780 810 673 14 56 32 278 112 Hop 34 | . . . . . . . . . . 8 14 11 . . . 1 . Pick Up 92 | 3 4 10 24 18 5 7 5 . 4 3 3 4 . . . 2 . Fast Attach 155 | 7 12 7 12 19 6 3 13 1 17 16 29 7 . . . 4 2 Attach 58 | . 2 2 11 5 1 1 9 1 6 4 4 1 3 . . 3 5 Detach 34 | . . 6 5 . 2 3 . . 3 1 7 1 . . . 5 1 Swap 44 | . 6 16 11 2 2 . 1 . 2 . 3 . . . . 1 . Drop 116 | . 4 13 7 6 11 15 14 1 15 7 12 9 . . . 2 . Fire 553 | 5 32 56 93 55 27 23 123 5 66 16 41 . . . . 6 5 Melee 44 | . . . . . . . . . 16 . 3 19 . . . 6 . Ram 11 | . . . 1 . . . . . 5 . . . . . . . 5 Kick 2 | . . . . . . . 1 . 1 . . . . . . . . Crush 1 | . 1 . . . . . . . . . . . . . . . . Escape Stasis 16 | . . . . . 8 . . . 8 . . . . . . . . Rewire 30 | . . . . . . . 3 . . . . 27 . . . . . Trap . | . . . . . . . . . . . . . . . . . . Miscellaneous 7 | . . 1 . . . . . . . 6 . . . . . . . Route ------- -11/Scrapyard -10/Materials (discovered 4 exits: [*Mat x2] / [*Min] / *Sub) -10/Subcaves (discovered 3 exits: *Mat x2 / *Rec) -8/Materials (discovered 2 exits: *Fac x2) -7/Factory (discovered 5 exits: *Fac / *Sto x2 / *Low x2) -7/Storage (discovered 2 exits: Fac / *Rec) -7/Recycling -5/Factory -5/Waste -5/Factory -4/Factory -3/Research -3/Armory (discovered 2 exits: *Res / *Lab) -3/Lab -2/Research -2/DSF -1/Access -1/Command History --------- Turn | Location | Event 12 | -11/Scrapyard | Discovered new exit (range 16) 90 | -11/Scrapyard | Entered Materials 310 | -10/Materials | Build established: Mutant 339 | -10/Materials | Discovered new exit (range 16) 673 | -10/Materials | Repaired Imp. Medium Laser 794 | -10/Materials | Discovered new exit (range 11) 901 | -10/Materials | Discovered new exit (range 10) 912 | -10/Materials | Discovered new exit (range 6) 920 | -10/Materials | Entered Subcaves 921 | -10/Subcaves | Approached by a straggling Scientist 1001 | -10/Subcaves | Ambushed by swarm of Subdwellers 1130 | -10/Subcaves | Learned Materials terminal intel 1243 | -10/Subcaves | Discovered new exit (range 8) 1553 | -10/Subcaves | Disturbed a concealed Subdweller 1782 | -10/Subcaves | Build established: Scavenger-Mutant 1786 | -10/Subcaves | Lost 3 allies 1834 | -10/Subcaves | Discovered new exit (range 15) 2284 | -10/Subcaves | Core integrity fell below 50% 2287 | -10/Subcaves | Ambushed by Subdweller buried in earth 2422 | -10/Subcaves | A swath of the cavern ceiling suddenly collapsed 2519 | -10/Subcaves | A swath of the cavern ceiling suddenly collapsed 2829 | -10/Subcaves | Visited 4L-MR0's lab 2849 | -10/Subcaves | Found Rainbow Chip 2972 | -10/Subcaves | Discovered new exit (range 15) 3008 | -10/Subcaves | Disturbed a concealed Subdweller 3025 | -10/Subcaves | Disturbed a concealed Subdweller 3176 | -10/Subcaves | Visited Clippyterm 3181 | -10/Subcaves | Learned location of Section 7 (-2) 3181 | -10/Subcaves | Learned Research machine intel 4027 | -10/Subcaves | Entered Materials 4027 | -8/Materials | Evolved 4 slots: Propulsion x2, Utility x2 4028 | -8/Materials | Loaded intel: 12 terminal locations 4339 | -8/Materials | Build established: Subdweller-Mutant 4539 | -8/Materials | Discovered new exit (range 15) 4587 | -8/Materials | Learned location of Zion (-6) 4648 | -8/Materials | Learned Factory stockpile data 4701 | -8/Materials | Learned location of 1 exit from Storage 4743 | -8/Materials | Learned location of 1 exit from Lower Caves 4794 | -8/Materials | Discovered new exit (range 4) 4796 | -8/Materials | Learned location of 1 exit from Extension 4857 | -8/Materials | Lost 7 parts (3n2u2w) 4868 | -8/Materials | Learned Factory stockpile data 5237 | -8/Materials | Build established: Hauler-Mutant 5418 | -8/Materials | Entered Factory 5418 | -7/Factory | Evolved 2 slots: Utility x1, Weapon x1 5419 | -7/Factory | Identified exit to Lower Caves 5551 | -7/Factory | Garrison activated, responded to threat 5760 | -7/Factory | Attached Rainbow Chip, gained temporary slots: Power, Propulsion, Utility, Weapon 5806 | -7/Factory | Lost 5 parts (2n2u1w) 6164 | -7/Factory | Discovered exit to Lower Caves (range 9) 6209 | -7/Factory | Build established: Scavenger-Gunner 6308 | -7/Factory | Identified exit to Storage 6312 | -7/Factory | Discovered new exit (range 10) 6610 | -7/Factory | Entered Storage 6611 | -7/Storage | Identified exit to Recycling 6612 | -7/Storage | Identified exit to Factory 6682 | -7/Storage | Found Prototype Launcher 6682 | -7/Storage | Identified Rocket Array 6871 | -7/Storage | Used back door to open Recycling access 6875 | -7/Storage | Entered Recycling 6950 | -7/Recycling | Build established: Gunner 7124 | -7/Recycling | Entered Scraplab 7129 | -7/Recycling | Found Prototype Device 7129 | -7/Recycling | Identified Scrap Engine 7484 | -7/Recycling | Discovered new exit (range 16) 7658 | -7/Recycling | Build established: Mutant 8218 | -7/Recycling | Entered Factory 8218 | -5/Factory | Evolved 4 slots: Power x1, Utility x2, Weapon x1 8627 | -5/Factory | Build established: Gunner 9194 | -5/Factory | Discovered new exit (range 9) 9223 | -5/Factory | Build established: Scavenger-Skirmisher 9240 | -5/Factory | Identified exit to Factory 9318 | -5/Factory | Garrison activated, responded to threat 9395 | -5/Factory | Spotted B-75 Beast 9418 | -5/Factory | First assault squad dispatched 9676 | -5/Factory | System corruption reached 10% 9718 | -5/Factory | Lost 3 parts (1p2u) 9770 | -5/Factory | Destroyed 8 combat bots 9771 | -5/Factory | Lost 4 parts (1p2n1w) 9828 | -5/Factory | Sucked down chute 9828 | -5/Factory | Entered Waste 9842 | -5/Waste | Spotted C-40 Crusher 9843 | -5/Waste | EMP discharged 9843 | -5/Waste | Spotted C-40 Crusher 9843 | -5/Waste | Spotted C-40 Crusher 9852 | -5/Waste | Spotted C-40 Crusher 9857 | -5/Waste | Spotted C-40 Crusher 9864 | -5/Waste | Destroyed C-40 Crusher 9892 | -5/Waste | Spotted C-40 Crusher 9906 | -5/Waste | Destroyed C-40 Crusher 9914 | -5/Waste | Destroyed C-40 Crusher 9914 | -5/Waste | Destroyed C-40 Crusher 9935 | -5/Waste | Discovered new exit (range 10) 9943 | -5/Waste | EMP discharged 9943 | -5/Waste | System corruption reached 30% 9945 | -5/Waste | Identified exit to Factory 9946 | -5/Waste | Entered Factory 10208 | -5/Factory | Build established: Mutant 10278 | -5/Factory | Core integrity fell below 50% 11233 | -5/Factory | Lost 3 parts (1p1n1u) 11338 | -5/Factory | Core integrity fell below 20% 11516 | -5/Factory | Discovered exit to Factory (range 15) 11542 | -5/Factory | Entered another Factory area 11542 | -4/Factory | Evolved 2 slots: Utility x2 11633 | -4/Factory | Build established: Scavenger-Mutant 11700 | -4/Factory | Released all parts (6) 11733 | -4/Factory | Lost 6 parts (1p3n2u) 11874 | -4/Factory | Lost 4 parts (3n1w) 11926 | -4/Factory | Core integrity fell below 50% 11995 | -4/Factory | Found Prototype Device 11995 | -4/Factory | Identified Adv. EM Shield 12016 | -4/Factory | Build established: Mutant 12045 | -4/Factory | Discovered new exit (range 12) 12051 | -4/Factory | Identified exit to Research 12052 | -4/Factory | Entered Research 12052 | -3/Research | Evolved 2 slots: Propulsion x2 12053 | -3/Research | Loaded intel: 136 machine locations 12139 | -3/Research | Lost 3 parts (3w) 12464 | -3/Research | Found Prototype Launcher 12464 | -3/Research | Identified Tactical Quantum Warhead 12484 | -3/Research | Discovered new exit (range 14) 12504 | -3/Research | Identified exit to Armory 12504 | -3/Research | Entered Armory 12665 | -3/Armory | Discovered new exit (range 9) 12674 | -3/Armory | Identified exit to Research 12719 | -3/Armory | Discovered new exit (range 4) 12722 | -3/Armory | Identified exit to Lab 12841 | -3/Armory | Core integrity fell below 50% 12848 | -3/Armory | Entered Lab 12852 | -3/Lab | Discovered exit to Research (range 9) 12855 | -3/Lab | Unable to decrypt terminal 12856 | -3/Lab | Entered Research 12856 | -2/Research | Evolved 2 slots: Propulsion x2 12873 | -2/Research | Lost 3 parts (2p1n) 12873 | -2/Research | Identified exit to DSF 12873 | -2/Research | Entered DSF 12878 | -2/DSF | Discovered new exit (range 15) 12883 | -2/DSF | Identified exit to Access 12883 | -2/DSF | Entered Access 12883 | -1/Access | Evolved 2 slots: Propulsion x2 12956 | -1/Access | Destroyed 7 combat bots 12968 | -1/Access | Lost 4 parts (3n1u) 13044 | -1/Access | Discovered new exit (range 10) 13046 | -1/Access | Released all parts (5) 13046 | -1/Access | Spotted B-99 Colossus 13047 | -1/Access | Spotted B-99 Colossus 13050 | -1/Access | Entered Command 13063 | -1/Command | Core integrity fell below 50% 13077 | -1/Command | Lost 7 parts (3n2u2w) 13114 | -1/Command | Core integrity fell below 20% 13130 | -1/Command | Destroyed by G-73 Enforcer with Phase Gun Last Messages --------------- 13047_ Slug penetrates Wall. 13048_ Penetrated by Slug. 13049_ Slug penetrates Sealed Heavy Doors. LOCATION=UNKNOWN GOAL=ESCAPE 13050_ ALERT: Rogue bot within command proximity. Terminate immediately. 13066_ Acquired Enh. Quantum Rifle. 13077_ Enh. Fission Core destroyed. 13079_ Enh. Quantum Rifle destroyed. 13082_ Slammed into S-43 Plague. 13090_ K-01 Serf cleans the Operations Mainframe. 13098_ Acquired System Shield. 13112_ Connecting with Cave Seal Controls... 13112_ Current location identified: Command 13112_ Lgt. Quantum Reactor destroyed. 13113_ Slammed into S-43 Plague. 13116_ Quantum Shading Machine destroyed. 13129_ Slammed into G-73 Enforcer. Map ----- +----------------------------------------------------+ | ?????????????????????????????????????????????????? | | ?????????????????????????????????????????????????? | | ?????????????????????????????????????????????????? | | ?????????????????????????????????????????????????? | | ?????????????????????????????????????????????????? | | ?????????????????????????????????????????????????? | | ?????????????????????????????????????????????????? | | ?????????????????????????????????????????????????? | | ?????????????????????????????????????????????????? | | ?????????????????????????????????????????????????? | | ?????????????????????????????????????????????????? | | ? ??????????????????????????????????????????????? | | # ?????????????????????????????????????????????? | | # / ???? ???????????????????????????????????????? | | # ??? #??????????????????????????????????????? | | # ??? #??????????????????????????????????????? | | # "" #??????????????????????????????????????? | | # """"#??????????????????????????????????????? | | # """"#??????????????????????????????????????? | | # "" #??????????????????????????????????????? | | # #??????????????????????????????????????? | | ?? #??????????????????????????????????????? | | ???? #??????????????????????????????????????? | | ?????? #??????????????????????????????????????? | | ########/###################/#####???????????????? | | s s k g@ggRs Rsks ????????? | | R ss s g s ????????? | | ###########+################+#########???????????? | | # #??????? ??????????????????? | | # #???????? ????????????????? | | # "" "" #?????????? ???????????????? | | " # """" """" #??????????? ?????????????? | | " # """" """" ?#???????????? #????????????? | | " # "" "" ????????????????#????????????? | | # ????????????????????????????? | | ### ??????????????????????????????? | | #?#####???#########??????????????????????????????? | | #????????????????????????????????????????????????? | | #????????????????????????????????????????????????? | | #????????????????????????????????????????????????? | | #????????????????????????????????????????????????? | | #????????????????????????????????????????????????? | | #????????????????????????????????????????????????? | | ?????????????????????????????????????????????????? | | ?????????????????????????????????????????????????? | | ?????????????????????????????????????????????????? | | ?????????????????????????????????????????????????? | | ?????????????????????????????????????????????????? | | ?????????????????????????????????????????????????? | | ?????????????????????????????????????????????????? | +----------------------------------------------------+ Best States ------------- Heat Dissipation 75 Energy Generation 37 Energy Capacity 598 Matter Stores 300 Matter Capacity 300 Sight Range 23 Robot Scan Range 16 Terrain Scan Range 24 Terrain Scan Density 210 ECM Strength 2 Cloak Strength 4 Additional Mass Support 20 Armor Coverage 800 Melee Speed Boost 30 Evasion (%) 65 Melee Accuracy 5 Core Analysis 6 Recoil Reduction 3 Offensive Hacking 12 Defensive Hacking 12 Item Schematics ----------------- Plasma Cutter | -3/Armory | Hacked Robot Schematics ------------------ None Fabricated ------------ Nothing Repaired ---------- Imp. Medium Laser | 67% | -10/Materials Alien Tech Used ----------------- None Achievements -------------- None Challenges ------------ None Game ------ Seed ColdSniperStabilizer Manual? 0 Play Time 02:41:50 Cumulative 447.3 hours Start 2025.08.10 @ 11:34:17 End 2025.08.10 @ 14:29:45 Sessions 3 Manual Loads 0 Difficulty Rogue Special Mode None Game No. 198 Rogue 198 Adventurer 0 Explorer 0 Win Type - Total 30 Types 12/2/5/2/5/1/0/2/0/1 Lore% 94 Gallery% 84 Achievement% 78 Wizard Run 0 Options --------- Layout 1 ASCII 0 Keyboard 0 Movement Numpad Keybinds 0 Fullscreen 1 Font 24/Smallcaps Map View 50x35 Zoom Use 0% Tactical HUD 1 Map Filters NONE Filters NONE Steam 1 RUN: 4ea66781-c6f3-4b0d-8b8b-dd0f19d363f2